Cogmind - Beta 15 @@@ ROGUE MODE // 2025.10.11 @ 15:21:44 Player: iromakkem Result: Destroyed by G-47 Trooper with Particle Gun Performance ------------- Evolutions (0) 0 Regions Visited (2) 400 Robots Destroyed (28) 140 Value Destroyed (541) 541 Prototype IDs (0) 0 Alien Tech Used (0) 0 Bonus (0) 0 TOTAL SCORE: 1081 Bonus ------- None Cogmind --------- Core Integrity 0/250 Matter 282/300 Energy 250/250 System Corruption 2% Temperature Cool (18) Movement Walking (400) Ox4 Location -10/Mines Parts ------- > --- POWER (1) -------- Ion Engine > --- PROPULSION (2) --- Aluminum Leg Aluminum Leg > --- UTILITY (2) ------ Huge Storage Unit Seismic Detector > --- WEAPON (2) ------- Medium Laser (fused) Beam Cannon > --- INVENTORY (25) --- Ion Engine Ion Engine Light Treads Aluminum Leg Aluminum Leg Aluminum Leg Heat Sink Medium Storage Unit Medium Matter Pod (0) Visual Processing Unit Sensor Array Improved Terrain Scanner Seismic Detector Seismic Detector Seismic Detector ECM Suite Light Armor Plating Medium Laser Medium Laser Beam Cannon Beam Cannon Beam Cannon Assault Rifle Mining Laser Signal Generator Peak State ------------ > --- POWER ------------ Light Nuclear Core > --- PROPULSION ------- Aluminum Leg Aluminum Leg > --- UTILITY ---------- Heat Sink Small Storage Unit > --- WEAPON ----------- Particle Gun Assault Rifle > --- INVENTORY -------- Aluminum Leg Aluminum Leg Heat Sink Sensor Array Seismic Detector Mining Laser [Rating: 10] Favorites ----------- Power Ion Engine Engine Ion Engine Power Core Light Nuclear Core Propulsion Aluminum Leg Treads Light Treads Leg Aluminum Leg Utility Seismic Detector Device Seismic Detector Storage Huge Storage Unit Weapon Medium Laser Energy Gun Medium Laser Energy Cannon Beam Cannon Ballistic Gun Assault Rifle Build | -11 -10 -10 ------- Run | Yrd Mat Min Slots Evolved . | . . . Power . | . . . Propulsion . | . . . Utility . | . . . Weapon . | . . . Parts Attached 27 | 8 19 . Power 4 | 1 3 . Engine 3 | 1 2 . Core 1 | . 1 . Reactor . | . . . Propulsion 9 | 3 6 . Treads 2 | 2 . . Leg 7 | 1 6 . Wheel . | . . . Hover . | . . . Flight . | . . . Utility 5 | 2 3 . Device 3 | 1 2 . Storage 2 | 1 1 . Processor . | . . . Hackware . | . . . Protection . | . . . Artifact . | . . . Weapon 9 | 2 7 . Energy Gun 5 | 1 4 . Energy Cannon 1 | . 1 . Ballistic Gun 3 | 1 2 . Ballistic Cannon . | . . . Launcher . | . . . Special Weapon . | . . . Impact Weapon . | . . . Slashing Weapon . | . . . Piercing Weapon . | . . . Special Melee Weapon . | . . . Unidentified Prototypes . | . . . Parts Lost 6 | . 6 . Power 2 | . 2 . Propulsion 2 | . 2 . Utility 1 | . 1 . Weapon 1 | . 1 . Highest Loss Streak 4 | . 4 . To Critical Strikes . | . . . Average Backups 14 | 3 14 24 Power 1 | . 1 2 Propulsion 3 | 1 3 4 Utility 6 | . 5 11 Weapon 3 | . 3 7 Tool/Special . | . . . Unused Backups 25 | . 2 23 Power 2 | . . 2 Propulsion 4 | . . 4 Utility 12 | . 2 10 Weapon 7 | . . 7 Tool/Special . | . . . Average Slot Usage (%) 99 | . 99 100 Engine 11 | . 11 14 Core 2 | . 2 . Treads 3 | . 3 . Leg 24 | . 24 28 Device 13 | . 13 14 Storage 14 | . 14 14 Energy Gun 15 | . 15 14 Energy Cannon 9 | . 8 14 Ballistic Gun 3 | . 3 . Peak Build Rating 10 | 9 10 10 Average Rating 8 | 6 8 9 On Entrance 6 | . 9 9 Naked Turns . | . . . Heaviest Build 91 | 12 91 91 Greatest Support 40 | 40 40 20 Greatest Overweight (x) 4 | . 4 4 Average Overweight (x) 1 | . 1 4 Largest Inventory Capacity 25 | 8 25 25 Average Capacity 18 | 7 18 25 Most Carried 25 | 6 24 25 Average Carried 14 | 3 14 24 Final Capacity 25 | 8 25 25 Final Carried 25 | 6 24 25 Class Distribution -------------------- 81% | Mutant 18% | Scavenger-Mutant Dominant Class ---------------- Mutant | -10/Materials Mutant | -10/Mines Resources | -11 -10 -10 ----------- Run | Yrd Mat Min Matter Collected 742 | 257 485 . Remotely . | . . . Salvage Created 888 | 34 854 . Parts 58 | 7 51 . Haulers Intercepted 1 | . 1 . Recyclers Shooed 1 | . 1 . Parts Field Recycled . | . . . Retrieved Matter . | . . . Parts Self-Destructed . | . . . Prevented . | . . . Kills | -11 -10 -10 ------- Run | Yrd Mat Min Combat Hostiles Destroyed 17 | . 17 . Guns 17 | . 17 . Classes Destroyed 7 | 1 6 . Worker 3 | . 3 . Tunneler 3 | 2 1 . Hauler 1 | . 1 . Recycler 2 | . 2 . Watcher 2 | . 2 . Swarmer 5 | . 5 . Grunt 12 | . 12 . Best Kill Streak 8 | 1 8 . Combat Bots Only 7 | . 7 . Max Kills in Single Turn 2 | 1 2 . Gunslinging 1 | . 1 . Exploded . | . . . Melee . | . . . Uniques/NPCs Destroyed . | . . . Combat | -11 -10 -10 -------- Run | Yrd Mat Min Hostile Shots Fired 170 | . 167 3 Missed 40 | . 39 1 Hits 130 | . 128 2 Projectile 130 | . 128 2 Damage Taken 1372 | . 1325 47 Core 254 | . 217 37 Absorbed by Shields . | . . . Core Remaining (%) 100 | 100 . . Volleys Fired 91 | 7 84 . Largest 2 | 2 2 . Hottest 115 | 60 115 . Shots Fired 179 | 14 165 . Gun 172 | 14 158 . Cannon 7 | . 7 . Launcher . | . . . Special . | . . . Kinetic 94 | 7 87 . Thermal 85 | 7 78 . Explosive . | . . . Electromagnetic . | . . . Robot Hit Streak 9 | 5 9 . Robot Miss Streak 4 | 2 4 . Penetration Max . | . . . Secondary Targets 4 | . 4 . Max Gunslinging Chain 1 | . 1 . Shots Hit Robots 105 | 8 97 . Core Hits 45 | 2 43 . Critical Kills . | . . . Critical Parts Destroyed . | . . . Critical Strikes 2 | . 2 . Burn 2 | . 2 . Melee Attacks . | . . . Impact . | . . . Slashing . | . . . Piercing . | . . . Sneak Attacks . | . . . Combat Hostiles . | . . . Follow-up Attacks . | . . . Damage Inflicted 1320 | 87 1233 . Guns 1259 | 87 1172 . Cannons 53 | . 53 . Explosions . | . . . Melee . | . . . Ramming 8 | . 8 . Kinetic 610 | 45 565 . Thermal 702 | 42 660 . Explosive . | . . . Electromagnetic . | . . . Impact . | . . . Slashing . | . . . Piercing . | . . . Highest Corruption 2 | . 2 2 Average Corruption 2 | . 2 2 Corruption Purged . | . . . Corruption Blocked . | . . . Effects 24 | . 22 2 Message Errors 4 | . 4 . Matter Fused 10 | . 10 . Energy Discharges 3 | . 2 1 Parts Fused 1 | . 1 . Data Loss (minor) 4 | . 4 . Data Loss (major) 2 | . 1 1 Overload Shots . | . . . Overflow Damage 1 | . 1 . Projectiles 1 | . 1 . Explosions . | . . . Melee . | . . . Knockbacks . | . . . Impact . | . . . Kinetic . | . . . Secondary . | . . . Self-Inflicted Damage . | . . . Shots . | . . . Rammed 1 | . 1 . Targets Rammed 3 | . 3 . Kicked 2 | . 2 . Crushed . | . . . Highest Temperature 364 | . 364 . Average Temperature 76 | . 76 . Received Heat Transfer 597 | . 573 24 Effects 1 | . 1 . Energy Bleed 1 | . 1 . Siege Activations . | . . . Martial Activations . | . . . Shielding Activations . | . . . Robots Disrupted . | . . . Combat Hostiles . | . . . Robots Corrupted . | . . . Combat Hostiles . | . . . Parts Fried . | . . . Impact Corruptions . | . . . Robots Melted . | . . . Combat Hostiles . | . . . Parts Melted 7 | . 7 . Heat Transferred 1927 | 100 1827 . Parts Sabotaged . | . . . Parts Stolen . | . . . Parts Stripped . | . . . Power Chain Reactions . | . . . Alert | -11 -10 -10 ------- Run | Yrd Mat Min Maximum Alert Level 1 | . 1 . Low Security (%) 89 | 100 88 100 Level 1 10 | . 11 . Level 2 . | . . . Level 3 . | . . . Level 4 . | . . . Level 5 . | . . . High Security . | . . . Max Security . | . . . Peak Influence 232 | 5 232 . Initial . | . . . Average 64 | . 72 . Influence Increases 540 | 10 530 . Destroy 0b10 Robot/C 340 | . 340 . Destroy 0b10 Robot/NC 55 | 10 45 . Destroy Leader 66 | . 66 . Successful Hack 19 | . 19 . Lose Combat Pursuer 60 | . 60 . Influence Decreases 540 | 10 530 . Time Decay 480 | 10 470 . Lost Part 60 | . 60 . Squads Dispatched 5 | . 4 1 Investigation 1 | . 1 . Extermination . | . . . Reinforcement 3 | . 3 . Assault 1 | . . 1 Garrison . | . . . Intercept . | . . . Searches Triggered . | . . . Construction Impeded . | . . . Haulers Reinforced . | . . . Active Scanning Responses . | . . . Cargo Convoy Interrupts . | . . . Stealth | -11 -10 -10 --------- Run | Yrd Mat Min Distress Signals 4 | . 4 . Communications Jammed . | . . . Distress Signals . | . . . Times Spotted 34 | . 29 5 Peak Tracking Total 8 | . 8 4 Tactical Retreats 2 | . 2 . Traps | -11 -10 -10 ------- Run | Yrd Mat Min Traps Triggered 3 | . 3 . Indirectly . | . . . Trap Hack Attempts . | . . . Triggered . | . . . Disarmed . | . . . Reprogrammed . | . . . Reused . | . . . Traps Extracted . | . . . Installed . | . . . Triggered . | . . . Machines | -11 -10 -10 ---------- Run | Yrd Mat Min Machines Disabled . | . . . Max in Single Turn . | . . . Machines Repaired . | . . . Machines Dismantled . | . . . Machines Sabotaged . | . . . Overloaded Fab Kills . | . . . Hacking | -11 -10 -10 --------- Run | Yrd Mat Min Machines Accessed 4 | . 4 . Terminals 4 | . 4 . Fabricators . | . . . Repair Stations . | . . . Recycling Units . | . . . Scanalyzers . | . . . Garrison Access . | . . . Total Hacks 8 | . 8 . Successful 5 | . 5 . Failed 3 | . 3 . Catastrophic 1 | . 1 . Database Lockouts . | . . . Manual . | . . . Terminals 8 | . 8 . Fabricators . | . . . Repair Stations . | . . . Recycling Units . | . . . Scanalyzers . | . . . Garrison Access . | . . . Terminal Hacks 5 | . 5 . Terminal Index 1 | . 1 . Locate Traps 1 | . 1 . Registered Prototypes 1 | . 1 . Zone Layout 2 | . 2 . Fabricator Hacks . | . . . Repair Station Hacks . | . . . Recycling Unit Hacks . | . . . Scanalyzer . | . . . Garrison Access Hacks . | . . . Unauthorized Hacks . | . . . Terminals . | . . . Fabricators . | . . . Repair Stations . | . . . Recycling Units . | . . . Scanalyzers . | . . . Garrison Access . | . . . Data Cores Recovered . | . . . Used . | . . . Hacking Detections 2 | . 2 . Full Trace Events 1 | . 1 . Feedback Events . | . . . Feedback Blocked . | . . . Robot Schematics Acquired . | . . . Robots Built . | . . . Authchips . | . . . Time . | . . . Total Robot Build Rating . | . . . Part Schematics Acquired . | . . . Parts Built . | . . . Authchips . | . . . Time . | . . . Total Part Build Rating . | . . . Parts Repaired . | . . . Time . | . . . Parts Recycled . | . . . Recycled Matter . | . . . Retrieved Matter . | . . . Retrieved Components . | . . . Parts Scanalyzed . | . . . Part Schematics Acquired . | . . . Parts Damaged . | . . . Bothacking | -11 -10 -10 ------------ Run | Yrd Mat Min Used RIF Installer . | . . . Robots Hacked . | . . . Non-combat . | . . . Combat . | . . . Robot Hacks Applied . | . . . Relay Couplers Released . | . . . Fabnet Peak Effective % . | . . . Robots Rewired . | . . . Allies Hacked . | . . . Hacks Repelled . | . . . Allies | -11 -10 -10 -------- Run | Yrd Mat Min Total Allies 1 | . . 1 Largest Group 1 | . . 1 Highest-Rated Group 31 | . . 31 Highest-Rated Ally 31 | . . 31 Total Orders . | . . . Ally Attacks 1 | . . 1 Total Damage 20 | . . 20 Kills . | . . . Allies Corrupted . | . . . Allies Melted . | . . . Intel | -11 -10 -10 ------- Run | Yrd Mat Min Active Infowar (turns) 1813 | 41 1604 168 Terrain 292 | 41 251 . Seismic 1521 | . 1353 168 Robot Analysis Total . | . . . Derelict Logs Recovered . | . . . Drone Launches . | . . . Drone Recoveries . | . . . Exploration | -11 -10 -10 ------------- Run | Yrd Mat Min Turns Passed 2413 | 122 2123 168 Spaces Moved 826 | 54 730 42 Core 5 | 3 2 . Treads 146 | 51 95 . Legs 675 | . 633 42 Wheels . | . . . Hover . | . . . Flight . | . . . Fastest Speed 50 | 50 120 400 Average Speed 248 | 153 246 400 Slowest Speed 400 | 160 400 400 Overloaded Moves . | . . . Propulsion Burnouts . | . . . Robots Hopped . | . . . Potential Cave-ins . | . . . Cave-ins Triggered . | . . . Exploration Rate (%) 33 | 4 85 11 Regions Visited 2 Branch Regions 1 Pre-discovered Areas . | . . . Known Exits Taken . | . . . Unknown Exits Taken 2 | 1 1 . Scrap Searched . | . . . Spaces Dug . | . . . Terrain Destroyed . | . . . Melee . | . . . Projectile . | . . . AOE . | . . . Terrain Rammed . | . . . Walls Destroyed . | . . . Machines Disabled . | . . . Actions | -11 -10 -10 --------- Run | Yrd Mat Min Total 1019 | 77 899 43 Wait 14 | . 14 . Move 824 | 53 729 42 Hop . | . . . Pick Up 39 | 8 30 1 Fast Attach 14 | 5 9 . Attach 13 | 3 10 . Detach 1 | 1 . . Swap 4 | . 4 . Drop 16 | . 16 . Fire 91 | 7 84 . Melee . | . . . Ram . | . . . Kick 2 | . 2 . Crush 1 | . 1 . Escape Stasis . | . . . Rewire . | . . . Trap . | . . . Miscellaneous . | . . . Route ------- -11/Scrapyard -10/Materials (discovered 4 exits: [*Mat x2] / [*Min x2]) -10/Mines History --------- Turn | Location | Event 14 | -11/Scrapyard | Discovered new exit (range 16) 123 | -11/Scrapyard | Entered Materials 321 | -10/Materials | Build established: Mutant 405 | -10/Materials | Lost 4 parts (1p1n1u1w) 418 | -10/Materials | Destroyed 7 combat bots 482 | -10/Materials | Discovered new exit (range 8) 535 | -10/Materials | Discovered new exit (range 7) 697 | -10/Materials | Discovered new exit (range 15) 734 | -10/Materials | Build established: Scavenger-Mutant 803 | -10/Materials | Core integrity fell below 50% 836 | -10/Materials | Core integrity fell below 20% 1172 | -10/Materials | Build established: Mutant 1517 | -10/Materials | Discovered new exit (range 6) 2246 | -10/Materials | Entered Mines 2247 | -10/Mines | Met a Derelict testing a Signal Generator 2258 | -10/Mines | Found Signal Generator 2260 | -10/Mines | Met a Derelict bent on vengeance 2414 | -10/Mines | Destroyed by G-47 Trooper with Particle Gun Last Messages --------------- 02251_ ALERT: Intercepting significant anomalous signal. Dispatching assault force. 02252_ NM-J5L(g): "Okay, I guess that means it works. Now let's get out of here!" 02254_ Signal Generator broadcasts a burst of procedurally generated transmissions. 02254_ ALERT: Intercepting significant anomalous signal. Redirecting assault force. 02258_ Acquired Signal Generator. 02280_ System corrupted: Energy discharge (-92). 02300_ System corrupted: Substantial component data lost. 02413_ C-30 ARC: "LOCATED POTENTIAL SOURCE OF ANOMALOUS SIGNAL. NEUTRALIZING." 02413_ C-30 ARC bursts open, deploying its payload. 02413_ G-47 Trooper unfolds itself. 02413_ G-34 Mercenary unfolds itself. 02413_ M-13 Machinist unfolds itself. [Achievement: Achiever] Map ----- +----------------------------------------------------+ | ?????????????????????????????????????????????????? | | ?????????????????????????????????????????????????? | | ?????????????????????????????????????????????????? | | ?????????????????????????????????????????????????? | | ?????????????????????????????????????????????????? | | ?????????????????????????????????????????????????? | | ?????????????????????????????????????????????????? | | ?????????????????????????????????????????????????? | | ?????????????????????????????????????????????????? | | ?????????????????????????????????????????????????? | | ?????????????????????????????????????????????????? | | ????????????????????????????? ???????????????????? | | ???????????????????????????? ?????????????????? | | ????????????????## ????????? ?????????????????? | | ????????????????# ????????? ?????????????????? | | ????????????????? ??????## ??????????????????? | | ?????????????????? #????# ??????????????????? | | ?????????????????? #### ???????????????????? | | ??????????????????? ???????????????????? | | ???????????????????? ????????????????????? | | ????????????????????? #????????????????????? | | ?????????????????????? #????????????????????? | | ??????????????????????# #????????????????????? | | ??????????????????????# r#####????????????????? | | ?????????????????????## m g #????????????????? | | ????????????????????## @ gg #????????????????? | | ???????????????????## g #####g#????????????????? | | ??????????????????## ##?????????????????????? | | ??????????????????# #?????????????????????? | | ??????????????????# #?????????????????????? | | ??????????????????# #?????????????????????? | | ??????????????????# ### #?????????????????????? | | ??????????????????###??## #?????????????????????? | | ????????????????????????# #?????????????????????? | | ????????????????????????# #?????????????????????? | | ????????????????????????# #?????????????????????? | | ????????????????????????# ############??????????# | | ????????????????????????# #?????????## | | ????????????????????????############# ########### | | ????????????????????????????????????# | | ????????????????????????????????????############## | | ?????????????????????????????????????????????????# | | ?????????????????????????????????????????????????? | | | | | | | | | | | | | | | +----------------------------------------------------+ Best States ------------- Heat Dissipation 35 Energy Generation 14 Energy Capacity 250 Matter Stores 300 Matter Capacity 300 Sight Range 16 Terrain Scan Range 16 Terrain Scan Density 10 Evasion (%) 55 Recoil Reduction 2 Item Schematics ----------------- None Robot Schematics ------------------ None Fabricated ------------ Nothing Repaired ---------- Nothing Alien Tech Used ----------------- None Achievements -------------- Achiever Challenges ------------ None Game ------ Seed ChromionEnhancedSink Manual? 0 Play Time 00:14:11 Cumulative 48.6 hours Start 2025.10.11 @ 02:43:13 End 2025.10.11 @ 15:21:44 Sessions 1 Manual Loads 0 Difficulty Rogue Special Mode None Game No. 67 Rogue 67 Adventurer 0 Explorer 0 Win Type - Total 0 Types 0/0/0/0/0/0/0/0/0/0 Lore% 12 Gallery% 21 Achievement% 25 Wizard Run 0 Options --------- Layout 1 ASCII 0 Keyboard 0 Movement Numpad Keybinds 0 Fullscreen 1 Font 16/SmallcapsGlow Map View 50x40 Zoom Use 46% Tactical HUD 1 Map Filters NONE Filters NONE Steam SD RUN: c2ae3c60-f4ec-4649-9303-d5c4873e14e5